Workbook

Sheet Lista de supermercado
M1: =cálculos!M9 -> LATICÍNIOS TOTAL
B2: Lista de supermercado
C3: Concluído | D3: ITEM | E3: LOJA | F3: CATEGORIA | G3: QTD | H3: UNIDADE | I3: PREÇO UNITÁRIO | J3: TOTAL | K3: COMENTÁRIO | M3: =cálculos!L9 -> 37
C4: 1 | D4: Laranjas | E4: Supermercado | F4: Produtos | G4: 2 | H4: lb | I4: R$ 2.99 | J4: =IFERROR(Lista[QTD]*Lista[PREÇO UNITÁRIO],"") -> R$ 5.98 | M4: =cálculos!M8 -> PRODUTOS TOTAL
D5: Maçãs | E5: Quitanda | F5: Produtos | G5: 3 | H5: lb | I5: R$ 1.99 | J5: =IFERROR(Lista[QTD]*Lista[PREÇO UNITÁRIO],"") -> R$ 5.97 | K5: Tenho cupom | M5: =cálculos!L8 -> 45
D6: Bananas | E6: Supermercado | F6: Produtos | G6: 1 | H6: porção | I6: R$ 3.99 | J6: =IFERROR(Lista[QTD]*Lista[PREÇO UNITÁRIO],"") -> R$ 3.99
D7: Alface | E7: Mercado | F7: Produtos | G7: 2 | H7: cabeça | I7: R$ 2.29 | J7: =IFERROR(Lista[QTD]*Lista[PREÇO UNITÁRIO],"") -> R$ 4.58 | M7: =cálculos!M7 -> CARNE TOTAL
D8: Tomates | E8: Mercado | F8: Produtos | G8: 4 | H8: lb | I8: R$ 3.49 | J8: =IFERROR(Lista[QTD]*Lista[PREÇO UNITÁRIO],"") -> R$ 13.96 | M8: =cálculos!L7 -> 80
D9: Abóbora | E9: Mercado | F9: Produtos | G9: 2 | H9: cada | I9: R$ 1.50 | J9: =IFERROR(Lista[QTD]*Lista[PREÇO UNITÁRIO],"") -> R$ 3.00
D10: Aipo | E10: Supermercado | F10: Produtos | G10: 2 | H10: porção | I10: R$ 1.99 | J10: =IFERROR(Lista[QTD]*Lista[PREÇO UNITÁRIO],"") -> R$ 3.98 | M10: =cálculos!M6 -> FRUTOS DO MAR TOTAL
D11: Pepino | E11: Mercado | F11: Produtos | G11: 1 | H11: lb | I11: R$ 2.29 | J11: =IFERROR(Lista[QTD]*Lista[PREÇO UNITÁRIO],"") -> R$ 2.29 | M11: =cálculos!L6 -> 109
D12: Cogumelos | E12: Supermercado | F12: Produtos | G12: 0.5 | H12: lb | I12: R$ 2.25 | J12: =IFERROR(Lista[QTD]*Lista[PREÇO UNITÁRIO],"") -> R$ 1.13 | K12: Portobello grande
D13: Leite | E13: Entrega em casa | F13: Laticínios | G13: 2 | H13: galões | I13: R$ 3.99 | J13: =IFERROR(Lista[QTD]*Lista[PREÇO UNITÁRIO],"") -> R$ 7.98 | M13: =cálculos!M3 -> TOTAL OUTROS
D14: Queijo | E14: Entrega em casa | F14: Laticínios | G14: 1 | H14: lb | I14: R$ 9.99 | J14: =IFERROR(Lista[QTD]*Lista[PREÇO UNITÁRIO],"") -> R$ 9.99 | K14: Queijos variados para fatiar | M14: =cálculos!L3 -> 0
D15: Ovos | E15: Entrega em casa | F15: Laticínios | G15: 2 | H15: dúzia | I15: R$ 3.50 | J15: =IFERROR(Lista[QTD]*Lista[PREÇO UNITÁRIO],"") -> R$ 7.00
D16: Queijo Cottage | E16: Entrega em casa | F16: Laticínios | G16: 1 | H16: 16 oz | I16: R$ 3.89 | J16: =IFERROR(Lista[QTD]*Lista[PREÇO UNITÁRIO],"") -> R$ 3.89 | M16: =cálculos!M4 -> TOTAL DO SUPERMERCADO
D17: Coalhada | E17: Entrega em casa | F17: Laticínios | G17: 1 | H17: 8 oz | I17: R$ 2.99 | J17: =IFERROR(Lista[QTD]*Lista[PREÇO UNITÁRIO],"") -> R$ 2.99 | M17: =TotalDoMercado -> 271
D18: Iogurte | E18: Supermercado | F18: Laticínios | G18: 1 | H18: 16 oz | I18: R$ 4.99 | J18: =IFERROR(Lista[QTD]*Lista[PREÇO UNITÁRIO],"") -> R$ 4.99 | K18: Grego com mel
D19: Carne | E19: Mercado | F19: Carne | G19: 10 | H19: lb | I19: R$ 7.99 | J19: =IFERROR(Lista[QTD]*Lista[PREÇO UNITÁRIO],"") -> R$ 79.90 | K19: Medalhão com bacon
D20: Salmão | E20: Peixaria | F20: Frutos do mar | G20: 6 | H20: lb | I20: R$ 8.99 | J20: =IFERROR(Lista[QTD]*Lista[PREÇO UNITÁRIO],"") -> R$ 53.94
D21: Patas de caranguejo | E21: Peixaria | F21: Frutos do mar | G21: 5 | H21: lb | I21: R$ 10.99 | J21: =IFERROR(Lista[QTD]*Lista[PREÇO UNITÁRIO],"") -> R$ 54.95

Sheet cálculos (hidden)
A1: *** A planilha deve permanecer oculta ***
K3: =SUM(Lista[TOTAL])-SUM(K6:K9) -> R$ 0.00 | L3: =ROUND(K3,0) -> R$ 0 | M3: TOTAL OUTROS
L4: =ROUNDUP(SUM(Lista[TOTAL]),0) -> R$ 271 | M4: TOTAL DO SUPERMERCADO
E6: =IFERROR(INDEX(Lista[CATEGORIA],MATCH(,COUNTIF($E$5:E5,Lista[CATEGORIA]),)),"") -> Produtos | F6: =SUMIFS(Lista[TOTAL],Lista[CATEGORIA],E6) -> 44.875 | G6: =F6+ROW()/1000000 -> 44.875006 | H6: =LARGE($G$6:$G$21,1) -> 108.890009 | I6: =MATCH(H6,$G$6:$G$21,0) -> 4 | J6: =INDEX($E$6:$E$21,$I6) -> Frutos do mar | K6: =INDEX($F$6:$F$21,$I6) -> R$ 108.89 | L6: =ROUND(K6,0) -> R$ 109 | M6: =UPPER(J6) & " TOTAL" -> FRUTOS DO MAR TOTAL
E7: =IFERROR(INDEX(Lista[CATEGORIA],MATCH(,COUNTIF($E$5:E6,Lista[CATEGORIA]),)),"") -> Laticínios | F7: =SUMIFS(Lista[TOTAL],Lista[CATEGORIA],E7) -> 36.84 | G7: =F7+ROW()/1000000 -> 36.840007 | H7: =LARGE($G$6:$G$21,2) -> 79.900008 | I7: =MATCH(H7,$G$6:$G$21,0) -> 3 | J7: =INDEX($E$6:$E$21,$I7) -> Carne | K7: =INDEX($F$6:$F$21,$I7) -> R$ 79.90 | L7: =ROUND(K7,0) -> R$ 80 | M7: =UPPER(J7) & " TOTAL" -> CARNE TOTAL
E8: =IFERROR(INDEX(Lista[CATEGORIA],MATCH(,COUNTIF($E$5:E7,Lista[CATEGORIA]),)),"") -> Carne | F8: =SUMIFS(Lista[TOTAL],Lista[CATEGORIA],E8) -> 79.9 | G8: 79.900008 | H8: =LARGE($G$6:$G$21,3) -> 44.875006 | I8: =MATCH(H8,$G$6:$G$21,0) -> 1 | J8: =INDEX($E$6:$E$21,$I8) -> Produtos | K8: =INDEX($F$6:$F$21,$I8) -> R$ 44.88 | L8: =ROUND(K8,0) -> R$ 45 | M8: =UPPER(J8) & " TOTAL" -> PRODUTOS TOTAL
E9: =IFERROR(INDEX(Lista[CATEGORIA],MATCH(,COUNTIF($E$5:E8,Lista[CATEGORIA]),)),"") -> Frutos do mar | F9: =SUMIFS(Lista[TOTAL],Lista[CATEGORIA],E9) -> 108.89 | G9: 108.890009 | H9: =LARGE($G$6:$G$21,4) -> 36.840007 | I9: =MATCH(H9,$G$6:$G$21,0) -> 2 | J9: =INDEX($E$6:$E$21,$I9) -> Laticínios | K9: =INDEX($F$6:$F$21,$I9) -> R$ 36.84 | L9: =ROUND(K9,0) -> R$ 37 | M9: =UPPER(J9) & " TOTAL" -> LATICÍNIOS TOTAL
E10: =IFERROR(INDEX(Lista[CATEGORIA],MATCH(,COUNTIF($E$5:E9,Lista[CATEGORIA]),)),"") ->  | F10: =SUMIFS(Lista[TOTAL],Lista[CATEGORIA],E10) -> 0 | G10: 1e-05
E11: =IFERROR(INDEX(Lista[CATEGORIA],MATCH(,COUNTIF($E$5:E10,Lista[CATEGORIA]),)),"") ->  | F11: =SUMIFS(Lista[TOTAL],Lista[CATEGORIA],E11) -> 0 | G11: 1.1e-05
E12: =IFERROR(INDEX(Lista[CATEGORIA],MATCH(,COUNTIF($E$5:E11,Lista[CATEGORIA]),)),"") ->  | F12: =SUMIFS(Lista[TOTAL],Lista[CATEGORIA],E12) -> 0 | G12: 1.2e-05
E13: =IFERROR(INDEX(Lista[CATEGORIA],MATCH(,COUNTIF($E$5:E12,Lista[CATEGORIA]),)),"") ->  | F13: =SUMIFS(Lista[TOTAL],Lista[CATEGORIA],E13) -> 0 | G13: 1.3e-05
E14: =IFERROR(INDEX(Lista[CATEGORIA],MATCH(,COUNTIF($E$5:E13,Lista[CATEGORIA]),)),"") ->  | F14: =SUMIFS(Lista[TOTAL],Lista[CATEGORIA],E14) -> 0 | G14: 1.4e-05
E15: =IFERROR(INDEX(Lista[CATEGORIA],MATCH(,COUNTIF($E$5:E14,Lista[CATEGORIA]),)),"") ->  | F15: =SUMIFS(Lista[TOTAL],Lista[CATEGORIA],E15) -> 0 | G15: 1.5e-05
E16: =IFERROR(INDEX(Lista[CATEGORIA],MATCH(,COUNTIF($E$5:E15,Lista[CATEGORIA]),)),"") ->  | F16: =SUMIFS(Lista[TOTAL],Lista[CATEGORIA],E16) -> 0 | G16: 1.6e-05
E17: =IFERROR(INDEX(Lista[CATEGORIA],MATCH(,COUNTIF($E$5:E16,Lista[CATEGORIA]),)),"") ->  | F17: =SUMIFS(Lista[TOTAL],Lista[CATEGORIA],E17) -> 0 | G17: 1.7e-05
E18: =IFERROR(INDEX(Lista[CATEGORIA],MATCH(,COUNTIF($E$5:E17,Lista[CATEGORIA]),)),"") ->  | F18: =SUMIFS(Lista[TOTAL],Lista[CATEGORIA],E18) -> 0 | G18: 1.8e-05
E19: =IFERROR(INDEX(Lista[CATEGORIA],MATCH(,COUNTIF($E$5:E18,Lista[CATEGORIA]),)),"") ->  | F19: =SUMIFS(Lista[TOTAL],Lista[CATEGORIA],E19) -> 0 | G19: 1.9e-05
E20: =IFERROR(INDEX(Lista[CATEGORIA],MATCH(,COUNTIF($E$5:E19,Lista[CATEGORIA]),)),"") ->  | F20: =SUMIFS(Lista[TOTAL],Lista[CATEGORIA],E20) -> 0 | G20: 2e-05
E21: =IFERROR(INDEX(Lista[CATEGORIA],MATCH(,COUNTIF($E$5:E20,Lista[CATEGORIA]),)),"") ->  | F21: =SUMIFS(Lista[TOTAL],Lista[CATEGORIA],E21) -> 0 | G21: 2.1e-05
